fUST/lending_fUST_20250722
["ID","MTS","AMOUNT","RATE_DAILY","PERIOD"]
[373931228,1753157432536,-460.0,0.00016943,2]
[373931229,1753157432546,-460.0,0.00016943,2]
[373931230,1753157432555,-510.46354837,0.00016943,2]
[373931231,1753157432565,-463.2873382,0.00016943,2]
[373931232,1753157432575,-460.0,0.00016943,2]
[373931233,1753157432584,-461.68820724,0.00016943,2]
[373931234,1753157432594,-460.0,0.00016943,2]
[373931235,1753157432604,-460.0,0.00016943,2]
[373931236,1753157432616,-460.0,0.00016943,2]
[373931237,1753157432625,-460.0,0.00016943,2]
[373931238,1753157432635,-460.0,0.00016943,2]
[373931239,1753157432648,-923.14,0.00016943,2]
[373931240,1753157432658,-465.95096715,0.00016943,2]
[373931241,1753157432667,-1019.9,0.00016943,2]
[373931242,1753157432677,-3216.22,0.00016943,2]
[373931243,1753157432687,-460.0,0.00016943,2]
[373931245,1753157432697,-460.0,0.00016943,2]
[373931246,1753157432707,-460.0,0.00016943,2]
[373931247,1753157432719,-509.94304532,0.00016943,2]
[373931248,1753157432728,-460.0,0.00016943,2]
[373931250,1753157432738,-2977.83624761,0.00016943,2]
[373931252,1753157432748,-463.74689393,0.00016944,2]
[373931254,1753157432759,-464.52824565,0.00016944,2]
[373931256,1753157432768,-460.0,0.00016944,2]
[373931258,1753157432779,-460.0,0.00016944,2]
[373931260,1753157432789,-460.0,0.00016944,2]
[373931262,1753157432799,-460.0,0.00016944,2]
[373931264,1753157432808,-545.13410673,0.00016944,2]
[373931266,1753157432818,-460.0,0.00016944,2]
[373931267,1753157432827,-460.0,0.00016944,2]
[373931269,1753157432836,-462.54024029,0.00016944,2]
[373931270,1753157432847,-460.0,0.00016944,2]
[373931271,1753157432857,-460.0,0.00016944,2]
[373931272,1753157432866,-461.29807438,0.00016944,2]
[373931273,1753157432876,-460.0,0.00016944,2]
[373931274,1753157432886,-5107.47,0.00016944,2]
[373931275,1753157432897,-1520.76,0.00016944,2]
[373931276,1753157432907,-1027.18,0.00016944,2]
[373931277,1753157432918,-460.0,0.00016944,2]
[373931278,1753157432928,-460.0,0.00016944,2]
[373931279,1753157432938,-333.31202276,0.00016944,2]
[373931280,1753157432948,-217.09197913,0.00016944,2]
[373931281,1753157432958,-500.0,0.00016944,2]
[373931282,1753157432967,-452.36298065,0.00016944,2]
[373931283,1753157432977,-500.0,0.00016944,2]
[373931284,1753157432987,-500.0,0.00016944,2]
[373931285,1753157432996,-301.98452679,0.00016944,2]
[373931286,1753157433006,-500.0,0.00016944,2]
[373931287,1753157433016,-500.0,0.00016944,2]
[373931288,1753157433026,-500.0,0.00016944,2]
[373931289,1753157433036,-500.0,0.00016944,2]
[373931290,1753157433046,-500.0,0.00016944,2]
[373931291,1753157433056,-500.0,0.00016944,2]
[373931292,1753157433067,-500.0,0.00016944,2]
[373931293,1753157433078,-500.0,0.00016944,2]
[373931294,1753157433088,-606.49315049,0.00016944,2]
[373931295,1753157433098,-500.0,0.00016944,2]
[373931296,1753157433108,-500.0,0.00016944,2]
[373931297,1753157433118,-239.65693505,0.00016944,2]
[373931298,1753157433128,-500.0,0.00016944,2]
[373931299,1753157433138,-500.0,0.00016944,2]
[373931300,1753157433150,-414.48192347,0.00016944,2]
[373931301,1753157433160,-500.0,0.00016944,2]
[373931302,1753157433170,-500.0,0.00016944,2]
[373931303,1753157433180,-500.0,0.00016944,2]
[373931304,1753157433190,-500.0,0.00016944,2]
[373931305,1753157433200,-500.0,0.00016944,2]
[373931306,1753157433210,-500.0,0.00016944,2]
[373931307,1753157433220,-500.0,0.00016944,2]
[373931308,1753157433230,-500.0,0.00016944,2]
[373931309,1753157433240,-500.0,0.00016944,2]
[373931310,1753157433249,-500.0,0.00016944,2]
[373931311,1753157433259,-500.0,0.00016944,2]
[373931312,1753157433269,-500.0,0.00016944,2]
[373931313,1753157433279,-460.0,0.00016944,2]
[373931314,1753157433289,-611.75,0.00016944,2]
[373931315,1753157433298,-4817.64,0.00016944,2]
[373931316,1753157433308,-460.0,0.00016944,2]
[373931317,1753157433318,-1033.11,0.00016944,2]
[373931318,1753157433328,-460.0,0.00016944,2]
[373931319,1753157433337,-2115.93,0.00016944,2]
[373931320,1753157433348,-1244.02,0.00016944,2]
[373931321,1753157433357,-161.42151698,0.00016944,2]
[373931322,1753157433367,-1005.78765271,0.00016944,2]
[373931323,1753157433376,-500.0,0.00016945,2]
[373931324,1753157433386,-460.0,0.00016945,2]
[373931325,1753157433398,-460.0,0.00016945,2]
[373931326,1753157433407,-463.48573571,0.00016945,2]
[373931327,1753157433417,-460.0,0.00016945,2]
[373931328,1753157433427,-460.0,0.00016945,2]
[373931329,1753157433437,-460.0,0.00016945,2]
[373931330,1753157433447,-460.0,0.00016945,2]
[373931331,1753157433457,-328.93406664,0.00016945,2]
[373931332,1753157433467,-410.96854598,0.00016945,2]
[373931333,1753157433477,-219.79892354,0.00016945,2]
[373931334,1753157433487,-460.0,0.00016945,2]
[373931335,1753157433497,-466.33850906,0.00016945,2]
[373931336,1753157433507,-460.0,0.00016945,2]
[373931337,1753157433517,-460.0,0.00016945,2]
[373931338,1753157433526,-460.0,0.00016945,2]
[373931339,1753157433546,-460.0,0.00016945,2]
[373931340,1753157433557,-460.0,0.00016945,2]
[373931341,1753157433567,-162.01459955,0.00016945,2]
[373931342,1753157433577,-460.0,0.00016945,2]
[373931343,1753157433588,-460.0,0.00016945,2]
[373931344,1753157433598,-460.0,0.00016945,2]
[373931345,1753157433608,-460.0,0.00016945,2]
[373931346,1753157433619,-463.53682294,0.00016945,2]
[373931347,1753157433630,-460.0,0.00016945,2]
[373931348,1753157433640,-460.0,0.00016945,2]
[373931349,1753157433653,-460.0,0.00016945,2]
[373931350,1753157433664,-460.0,0.00016945,2]
[373931351,1753157433675,-460.0,0.00016945,2]
[373931352,1753157433686,-460.0,0.00016945,2]
[373931353,1753157433696,-321.94627158,0.00016945,2]
[373931354,1753157433706,-460.0,0.00016945,2]
[373931355,1753157433720,-460.0,0.00016945,2]
[373931356,1753157433731,-460.0,0.00016945,2]
[373931357,1753157433741,-423.06888372,0.00016945,2]
[373931358,1753157433752,-460.0,0.00016945,2]
[373931359,1753157433763,-460.0,0.00016945,2]
[373931360,1753157433773,-460.0,0.00016945,2]
[373931361,1753157433784,-464.30151926,0.00016945,2]
[373931362,1753157433797,-713.91,0.00016945,2]
[373931363,1753157433809,-460.0,0.00016945,2]
[373931364,1753157433819,-460.0,0.00016945,2]
[373931365,1753157433830,-460.0,0.00016945,2]
[373931366,1753157433840,-460.0,0.00016945,2]
[373931367,1753157433851,-460.0,0.00016945,2]
[373931368,1753157433861,-460.0,0.00016945,2]
[373931369,1753157433871,-461.48969389,0.00016945,2]
[373931370,1753157433881,-460.0,0.00016945,2]
[373931371,1753157433891,-460.0,0.00016945,2]
[373931372,1753157433903,-460.0,0.00016945,2]
[373931373,1753157433914,-460.0,0.00016945,2]
[373931374,1753157433924,-460.0,0.00016945,2]
[373931375,1753157433934,-229.24292489,0.00016945,2]
[373931376,1753157433945,-460.0,0.00016945,2]
[373931377,1753157433955,-460.0,0.00016945,2]
[373931378,1753157433965,-461.84691379,0.00016945,2]
[373931379,1753157433976,-463.25628575,0.00016945,2]
[373931380,1753157433986,-460.0,0.00016945,2]
[373931381,1753157433996,-460.0,0.00016945,2]
[373931382,1753157434006,-460.0,0.00016945,2]
[373931383,1753157434016,-460.0,0.00016945,2]
[373931384,1753157434026,-460.0,0.00016945,2]
[373931385,1753157434035,-460.0,0.00016945,2]
[373931386,1753157434046,-460.0,0.00016945,2]
[373931387,1753157434056,-460.0,0.00016945,2]
[373931388,1753157434066,-460.0,0.00016945,2]
[373931389,1753157434076,-460.0,0.00016945,2]
[373931390,1753157434086,-445.6383823,0.00016945,2]
[373931391,1753157434096,-460.0,0.00016945,2]
[373931392,1753157434106,-527.76,0.00016945,2]
[373931393,1753157434116,-460.0,0.00016945,2]
[373931394,1753157434126,-460.0,0.00016945,2]
[373931395,1753157434137,-461.94545973,0.00016945,2]
[373931396,1753157434151,-460.0,0.00016945,2]
[373931397,1753157434161,-460.0,0.00016945,2]
[373931398,1753157434171,-460.0,0.00016945,2]
[373931399,1753157434186,-500.0,0.00016945,2]
[373931400,1753157434196,-500.0,0.00016945,2]
[373931401,1753157434207,-500.0,0.00016945,2]
[373931402,1753157434217,-500.0,0.00016945,2]
[373931403,1753157434227,-500.0,0.00016945,2]
[373931404,1753157434237,-500.0,0.00016945,2]
[373931405,1753157434247,-515.7347405,0.00016945,2]
[373931406,1753157434256,-460.0,0.00016945,2]
[373931407,1753157434266,-462.05530172,0.00016945,2]
[373931408,1753157434276,-460.0,0.00016945,2]
[373931409,1753157434285,-486.75,0.00016945,2]
[373931410,1753157434295,-460.0,0.00016945,2]
[373931411,1753157434305,-460.0,0.00016945,2]
[373931412,1753157434315,-460.0,0.00016945,2]
[373931413,1753157434325,-537.44,0.00016945,2]
[373931414,1753157434334,-460.0,0.00016945,2]
[373931415,1753157434344,-460.0,0.00016945,2]
[373931416,1753157434353,-460.0,0.00016945,2]
[373931417,1753157434364,-460.0,0.00016945,2]
[373931418,1753157434374,-460.0,0.00016945,2]
[373931419,1753157434383,-515.51,0.00016945,2]
[373931420,1753157434396,-460.0,0.00016945,2]
[373931421,1753157434409,-460.0,0.00016945,2]
[373931422,1753157434419,-460.0,0.00016945,2]
[373931423,1753157434429,-460.0,0.00016945,2]
[373931424,1753157434440,-460.0,0.00016945,2]
[373931425,1753157434450,-460.0,0.00016945,2]
[373931426,1753157434460,-460.0,0.00016945,2]
[373931427,1753157434471,-460.0,0.00016945,2]
[373931428,1753157434480,-460.0,0.00016945,2]
[373931429,1753157434490,-460.0,0.00016945,2]
[373931430,1753157434500,-460.0,0.00016945,2]
[373931431,1753157434511,-9991.89,0.00016945,2]
[373931432,1753157434520,-531.11087607,0.00016945,2]
[373931433,1753157434530,-460.0,0.00016945,2]
[373931434,1753157434540,-531.88552413,0.00016945,2]
[373931435,1753157434550,-460.0,0.00016945,2]
[373931436,1753157434559,-460.0,0.00016945,2]
[373931437,1753157434569,-460.0,0.00016945,2]
[373931438,1753157434578,-460.0,0.00016945,2]
[373931439,1753157434588,-385.67780496,0.00016945,2]
[373931440,1753157434598,-461.14749535,0.00016945,2]
[373931441,1753157434607,-460.0,0.00016945,2]
[373931442,1753157434617,-460.0,0.00016945,2]
[373931443,1753157434627,-460.0,0.00016945,2]
[373931444,1753157434637,-460.0,0.00016945,2]
[373931445,1753157434651,-460.0,0.00016945,2]
[373931446,1753157434661,-901.37,0.00016945,2]
[373931447,1753157434671,-460.0,0.00016945,2]
[373931448,1753157434681,-460.0,0.00016945,2]
[373931449,1753157434691,-460.0,0.00016945,2]
[373931450,1753157434701,-461.63841077,0.00016945,2]
[373931451,1753157434712,-460.0,0.00016945,2]
[373931452,1753157434726,-460.0,0.00016945,2]
[373931453,1753157434736,-285.92190921,0.00016945,2]
[373931454,1753157434746,-460.0,0.00016945,2]
[373931455,1753157434758,-466.72581969,0.00016945,2]
[373931456,1753157434768,-460.0,0.00016945,2]
[373931457,1753157434778,-460.0,0.00016945,2]
[373931458,1753157434788,-460.0,0.00016945,2]
[373931459,1753157434799,-460.0,0.00016945,2]
[373931460,1753157434811,-460.0,0.00016945,2]
[373931461,1753157434822,-460.0,0.00016945,2]
[373931462,1753157434832,-450.96520318,0.00016945,2]
[373931463,1753157434842,-460.0,0.00016945,2]
[373931464,1753157434852,-460.0,0.00016945,2]
[373931465,1753157434862,-460.0,0.00016945,2]
[373931466,1753157434871,-460.0,0.00016945,2]
[373931467,1753157434881,-460.0,0.00016945,2]
[373931468,1753157434891,-460.0,0.00016945,2]
[373931469,1753157435076,-460.0,0.00016945,2]
[373931470,1753157435087,-1172.04,0.00016945,2]
[373931471,1753157435096,-460.0,0.00016945,2]
[373931472,1753157435105,-460.79970362,0.00016945,2]
[373931473,1753157435114,-460.0,0.00016945,2]
[373931474,1753157435124,-460.0,0.00016945,2]
[373931475,1753157435133,-151.0,0.00016945,2]
[373931476,1753157435142,-460.20822414,0.00016945,2]
[373931477,1753157435153,-460.0,0.00016945,2]
[373931478,1753157435162,-151.0,0.00016945,2]
[373931479,1753157435172,-460.0,0.00016945,2]
[373931480,1753157435181,-460.0,0.00016945,2]
[373931481,1753157435191,-151.0,0.00016945,2]
[373931482,1753157435200,-1438.68,0.00016945,2]
[373931483,1753157435209,-151.86108469,0.00016945,2]
[373931484,1753157435218,-460.0,0.00016945,2]
[373931485,1753157435228,-151.0,0.00016945,2]
[373931486,1753157435239,-460.53532639,0.00016945,2]
[373931487,1753157435248,-460.0,0.00016945,2]
[373931488,1753157435257,-1388.47,0.00016945,2]
[373931489,1753157435266,-152.58843997,0.00016945,2]
[373931490,1753157435275,-460.0,0.00016945,2]
[373931491,1753157435285,-460.0,0.00016945,2]
[373931492,1753157435294,-959.19,0.00016945,2]
[373931493,1753157435303,-460.0,0.00016945,2]
[373931494,1753157435312,-460.0,0.00016945,2]
[373931495,1753157435321,-460.0,0.00016945,2]
[373931496,1753157435330,-460.0,0.00016945,2]
[373931497,1753157435339,-460.0,0.00016945,2]
[373931498,1753157435348,-460.0,0.00016945,2]
[373931499,1753157435358,-460.0,0.00016945,2]
[373931500,1753157435368,-460.0,0.00016945,2]
[373931501,1753157435377,-460.0,0.00016945,2]
[373931502,1753157435386,-496.74646527,0.00016945,2]
[373931503,1753157435397,-460.0,0.00016945,2]
[373931504,1753157435406,-460.0,0.00016945,2]
[373931505,1753157435415,-462.19975433,0.00016945,2]
[373931506,1753157435424,-462.0238258,0.00016945,2]
[373931507,1753157435433,-460.0,0.00016945,2]
[373931508,1753157435443,-983.0,0.00016945,2]
[373931509,1753157435453,-460.0,0.00016945,2]
[373931510,1753157435463,-460.0,0.00016945,2]
[373931511,1753157435472,-461.14236931,0.00016945,2]
[373931512,1753157435482,-460.0,0.00016945,2]
[373931513,1753157435492,-461.54502376,0.00016945,2]
[373931514,1753157435501,-460.0,0.00016945,2]
[373931515,1753157435511,-4717.98,0.00016945,2]
[373931516,1753157435521,-1144.31,0.00016945,2]
[373931517,1753157435532,-460.0,0.00016945,2]
[373931518,1753157435542,-460.0,0.00016945,2]
[373931519,1753157435551,-460.0,0.00016945,2]
[373931520,1753157435561,-463.48115566,0.00016945,2]
[373931521,1753157435570,-460.0,0.00016945,2]
[373931522,1753157435579,-245.59776266,0.00016945,2]
[373931523,1753157435588,-462.25459717,0.00016945,2]
[373931524,1753157435598,-461.19406109,0.00016945,2]
[373931525,1753157435608,-460.0,0.00016945,2]
[373931526,1753157435617,-1482.56,0.00016945,2]
[373931527,1753157435627,-460.0,0.00016945,2]
[373931528,1753157435636,-462.08853149,0.00016945,2]
[373931529,1753157435646,-462.1658816,0.00016945,2]
[373931530,1753157435656,-460.0,0.00016945,2]
[373931531,1753157435673,-460.0,0.00016945,2]
[373931532,1753157435688,-460.0,0.00016945,2]
[373931533,1753157435699,-514.54804548,0.00016945,2]
[373931534,1753157435710,-463.65120844,0.00016945,2]
[373931535,1753157435725,-460.0,0.00016945,2]
[373931536,1753157435735,-150.5391615,0.00016945,2]
[373931537,1753157435746,-460.0,0.00016945,2]
[373931538,1753157435756,-460.0,0.00016945,2]
[373931539,1753157435767,-460.0,0.00016945,2]
[373931540,1753157435777,-1287.62,0.00016945,2]
[373931541,1753157435787,-895.53,0.00016945,2]
[373931542,1753157435798,-460.64255534,0.00016945,2]
[373931543,1753157435810,-460.0,0.00016945,2]
[373931544,1753157435820,-460.0,0.00016945,2]
[373931545,1753157435830,-500.0,0.00016945,2]
[373931546,1753157435840,-2097.13,0.00016945,2]
[373931547,1753157435849,-460.0,0.00016945,2]
[373931548,1753157435859,-500.0,0.00016945,2]
[373931549,1753157435870,-500.0,0.00016945,2]
[373931550,1753157435880,-500.0,0.00016945,2]
[373931551,1753157435890,-500.0,0.00016945,2]
[373931552,1753157435903,-460.0,0.00016945,2]
[373931553,1753157435913,-460.0,0.00016945,2]
[373931554,1753157435924,-460.0,0.00016945,2]
[373931555,1753157435934,-461.47854519,0.00016945,2]
[373931556,1753157435944,-461.82654767,0.00016945,2]
[373931557,1753157435954,-460.0,0.00016945,2]
[373931558,1753157435964,-460.0,0.00016945,2]
[373931559,1753157435975,-460.0,0.00016945,2]
[373931560,1753157435986,-746.5,0.00016945,2]
[373931561,1753157435995,-461.29578883,0.00016945,2]
[373931562,1753157436005,-460.0,0.00016945,2]
[373931563,1753157436015,-460.0,0.00016945,2]
[373931564,1753157436025,-460.0,0.00016945,2]
[373931565,1753157436034,-590.13098003,0.00016945,2]
[373931566,1753157436044,-579.45461188,0.00016945,2]
[373931567,1753157436054,-460.0,0.00016945,2]
[373931568,1753157436064,-460.0,0.00016945,2]
[373931569,1753157436074,-716.0,0.00016945,2]
[373931570,1753157436084,-1436.52,0.00016945,2]
[373931571,1753157436094,-460.0,0.00016945,2]
[373931572,1753157436104,-460.0,0.00016945,2]
[373931573,1753157436114,-154.94722487,0.00016945,2]
[373931574,1753157436124,-461.81347459,0.00016945,2]
[373931575,1753157436133,-156.11378499,0.00016945,2]
[373931576,1753157436143,-463.54403321,0.00016945,2]
[373931577,1753157436153,-460.0,0.00016945,2]
[373931578,1753157436163,-359.54865265,0.00016945,2]
[373931579,1753157436174,-461.63866567,0.00016945,2]
[373931580,1753157436185,-153.93999639,0.00016945,2]
[373931581,1753157436195,-968.2,0.00016945,2]
[373931582,1753157436206,-460.0,0.00016945,2]
[373931583,1753157436215,-151.0,0.00016945,2]
[373931584,1753157436225,-151.0,0.00016945,2]
[373931585,1753157436235,-151.0,0.00016945,2]
[373931586,1753157436244,-151.0,0.00016945,2]
[373931587,1753157436253,-460.0,0.00016945,2]
[373931588,1753157436265,-461.74847044,0.00016945,2]
[373931589,1753157436276,-460.0,0.00016945,2]
[373931590,1753157436286,-460.0,0.00016945,2]
[373931591,1753157436295,-79392.79515234,0.00016946,2]
[373931592,1753157436515,-493.52358549,0.00016946,2]
[373931593,1753157436526,-964.02039358,0.00016946,2]
[373931594,1753157436552,-4329.08964903,0.00016946,2]
[373931595,1753157436564,-603.03914031,0.00016946,2]
[373931596,1753157436585,-1120.91079875,0.00016946,2]
[373931613,1753157438421,-460.0,0.00016943,2]
[373931614,1753157438431,-3766.72,0.00016945,2]
[373931615,1753157438440,-460.88614258,0.00016945,2]
[373931616,1753157438450,-232808.27529943,0.00016946,2]
[373931617,1753157438459,-2343.18369426,0.00016964,2]
[373931618,1753157438468,-152.15042828,0.00016971,2]
[373931619,1753157438478,-151.0,0.00016971,2]
[373931620,1753157438487,-151.0,0.00016971,2]
[373931621,1753157438497,-25000.0,0.00016971,2]
[373931622,1753157438506,-151.0,0.00016971,2]
[373931623,1753157438516,-13086.43033508,0.00016971,2]
[373931624,1753157438526,-151.0,0.00016971,2]
[373931625,1753157438535,-151.0,0.00016971,2]
[373931626,1753157438545,-151.0,0.00016971,2]
[373931627,1753157438554,-151.0,0.00016971,2]
[373931628,1753157438564,-151.0,0.00016971,2]
[373931629,1753157438574,-151.0,0.00016971,2]
[373931630,1753157438584,-151.0,0.00016971,2]
[373931631,1753157438594,-151.0,0.00016971,2]
[373931632,1753157438603,-151.0,0.00016971,2]
[373931633,1753157438612,-215.0738,0.00016971,2]
[373931634,1753157438621,-151.0,0.00016971,2]
[373931635,1753157438631,-151.0,0.00016971,2]
[373931636,1753157438640,-151.0,0.00016971,2]
[373931637,1753157438653,-151.0,0.00016971,2]
[373931638,1753157438663,-151.0,0.00016971,2]
[373931639,1753157438672,-151.0,0.00016971,2]
[373931640,1753157438682,-151.0,0.00016971,2]
[373931641,1753157438691,-151.0,0.00016971,2]
[373931642,1753157438701,-151.0,0.00016971,2]
[373931643,1753157438710,-151.0,0.00016971,2]
[373931644,1753157438722,-151.0,0.00016971,2]
[373931645,1753157438732,-151.0,0.00016971,2]
[373931646,1753157438741,-151.0,0.00016971,2]
[373931647,1753157438751,-151.0,0.00016971,2]
[373931648,1753157438762,-151.0,0.00016971,2]
[373931649,1753157438772,-151.0,0.00016971,2]
[373931650,1753157438782,-161.90412321,0.00016971,2]
[373931651,1753157438793,-351.0,0.0001704,2]
[373931652,1753157438802,-460.0,0.00017042,2]
[373931653,1753157438812,-460.0,0.00017042,2]
[373931654,1753157438821,-460.0,0.00017042,2]
[373931655,1753157438830,-465.16202696,0.00017042,2]
[373931656,1753157438840,-460.0,0.00017042,2]
[373931657,1753157438849,-460.0,0.00017042,2]
[373931658,1753157438858,-460.0,0.00017042,2]
[373931659,1753157438868,-460.0,0.00017042,2]
[373931660,1753157438877,-586.24,0.00017042,2]
[373931661,1753157438887,-875.56,0.00017042,2]
[373931662,1753157438899,-1107.94,0.00017042,2]
[373931663,1753157438909,-1309.67,0.00017042,2]
[373931664,1753157438918,-472.43,0.00017042,2]
[373931665,1753157438927,-460.0,0.00017042,2]
[373931666,1753157438937,-460.0,0.00017042,2]
[373931667,1753157438946,-1235.69,0.00017042,2]
[373931668,1753157438955,-1109.78,0.00017042,2]
[373931669,1753157438965,-1365.04,0.00017042,2]
[373931670,1753157438974,-1373.31,0.00017042,2]
[373931671,1753157438983,-1034.84,0.00017042,2]
[373931672,1753157438993,-462.09058776,0.00017043,2]
[373931673,1753157439003,-460.0,0.00017043,2]
[373931674,1753157439013,-460.0,0.00017043,2]
[373931675,1753157439022,-460.0,0.00017043,2]
[373931676,1753157439031,-1002.57953395,0.00017043,2]
[373931677,1753157439041,-460.0,0.00017043,2]
[373931678,1753157439050,-460.0,0.00017043,2]
[373931679,1753157439059,-460.0,0.00017043,2]
[373931680,1753157439069,-460.0,0.00017043,2]
[373931681,1753157439078,-460.0,0.00017043,2]
[373931682,1753157439087,-460.77357237,0.00017043,2]
[373931683,1753157439098,-462.53203668,0.00017043,2]
[373931684,1753157439107,-594.88699619,0.00017043,2]
[373931685,1753157439117,-460.0,0.00017043,2]
[373931686,1753157439126,-462.45996451,0.00017043,2]
[373931687,1753157439136,-460.0,0.00017043,2]
[373931688,1753157439146,-460.0,0.00017043,2]
[373931689,1753157439299,-461.03742344,0.00017043,2]
[373931690,1753157439310,-464.47060538,0.00017043,2]
[373931691,1753157439321,-461.39722081,0.00017043,2]
[373931692,1753157439330,-460.0,0.00017043,2]
[373931693,1753157439339,-460.0,0.00017043,2]
[373931694,1753157439348,-460.0,0.00017043,2]
[373931695,1753157439358,-460.0,0.00017043,2]
[373931696,1753157439367,-460.0057042,0.00017043,2]
[373931697,1753157439378,-296.90467116,0.00017043,2]
[373931698,1753157439387,-460.0,0.00017043,2]
[373931699,1753157439400,-460.0,0.00017043,2]
[373931700,1753157439410,-460.0,0.00017043,2]
[373931701,1753157439419,-460.0,0.00017043,2]
[373931702,1753157439429,-460.0,0.00017043,2]
[373931703,1753157439439,-460.0,0.00017043,2]
[373931704,1753157439449,-460.0,0.00017043,2]
[373931705,1753157439459,-460.0,0.00017043,2]
[373931706,1753157439468,-460.0,0.00017043,2]
[373931707,1753157439478,-460.0,0.00017043,2]
[373931708,1753157439489,-460.0,0.00017043,2]
[373931709,1753157439499,-574.23,0.00017043,2]
[373931710,1753157439508,-460.0,0.00017043,2]
[373931711,1753157439518,-460.0,0.00017043,2]
[373931712,1753157439527,-460.0,0.00017043,2]
[373931713,1753157439537,-1368.84,0.00017043,2]
[373931714,1753157439546,-460.0,0.00017043,2]
[373931715,1753157439556,-1248.03,0.00017043,2]
[373931716,1753157439566,-734.62,0.00017043,2]
[373931717,1753157439576,-151.0,0.00017043,2]
[373931718,1753157439585,-947.0,0.00017043,2]
[373931719,1753157439595,-151.98645579,0.00017043,2]
[373931720,1753157439605,-151.0,0.00017043,2]
[373931721,1753157439614,-460.0,0.00017043,2]
[373931722,1753157439624,-460.0,0.00017043,2]
[373931723,1753157439633,-465.5166117,0.00017043,2]
[373931724,1753157439645,-460.0,0.00017043,2]
[373931725,1753157439654,-460.0,0.00017043,2]
[373931726,1753157439664,-1479.12,0.00017043,2]
[373931727,1753157439674,-493.18,0.00017043,2]
[373931728,1753157439684,-460.0,0.00017043,2]
[373931729,1753157439694,-460.0,0.00017043,2]
[373931730,1753157439704,-662.43,0.00017043,2]
[373931731,1753157439714,-460.0,0.00017043,2]
[373931732,1753157439729,-460.0,0.00017043,2]
[373931733,1753157439738,-270.47790927,0.00017043,2]
[373931734,1753157439748,-460.0,0.00017043,2]
[373931735,1753157439757,-460.0,0.00017043,2]
[373931736,1753157439769,-460.0,0.00017043,2]
[373931737,1753157439778,-460.0,0.00017043,2]
[373931738,1753157439788,-894.47,0.00017043,2]
[373931739,1753157439799,-460.0,0.00017043,2]
[373931740,1753157439809,-460.0,0.00017043,2]
[373931741,1753157439818,-500.0,0.00017043,2]
[373931742,1753157439827,-500.0,0.00017043,2]
[373931743,1753157439837,-500.0,0.00017043,2]
[373931744,1753157439847,-460.0,0.00017043,2]
[373931745,1753157439856,-460.0,0.00017043,2]
[373931746,1753157439865,-460.0,0.00017043,2]
[373931747,1753157439875,-460.0,0.00017043,2]
[373931748,1753157439885,-462.22632376,0.00017043,2]
[373931749,1753157439896,-1792.3,0.00017043,2]
[373931750,1753157439906,-460.0,0.00017043,2]
[373931751,1753157439915,-463.22383427,0.00017043,2]
[373931752,1753157439924,-589.76,0.00017043,2]
[373931753,1753157439933,-585.75,0.00017043,2]
[373931754,1753157439942,-462.98459397,0.00017043,2]